fUSD/lending_fUSD_20240318
["ID","MTS","AMOUNT","RATE_DAILY","PERIOD"]
[319461828,1710791438664,-334.1397219,0.000195,2]
[319461829,1710791438674,-153.80188616,0.00019554,2]
[319461830,1710791438683,-153.03280389,0.00019589,2]
[319461831,1710791438693,-178.29,0.00019644,2]
[319461832,1710791438703,-158.36858529,0.00019736,2]
[319461833,1710791438712,-156.18874641,0.00019744,2]
[319461834,1710791438722,-150.15825195,0.0002,10]
[319461835,1710791438731,-150.0,0.0002,2]
[319461836,1710791438741,-150.0,0.0002,2]
[319461837,1710791438753,-444.523768,0.0002,2]
[319461838,1710791438762,-250.0,0.000201,2]
[319461839,1710791438772,-150.0,0.000201,2]
[319461840,1710791438782,-180.0,0.00020114,2]
[319461841,1710791438792,-153.80188616,0.00020123,2]
[319461842,1710791438802,-178.29,0.00020192,2]
[319461843,1710791438812,-153.03280389,0.00020244,2]
[319461844,1710791438822,-153.05383811,0.00020273,2]
[319461845,1710791438831,-275.5,0.000203,2]
[319461846,1710791438841,-600.0,0.000203,2]
[319461847,1710791438851,-112.98586296,0.0002034,2]
[319461848,1710791438864,-41.57717472,0.0002034,2]
[319461849,1710791438875,-156.18874641,0.00020445,2]
[319461850,1710791438884,-150.0,0.00020465,2]
[319461851,1710791438894,-150.0,0.00020465,2]
[319461852,1710791438903,-200.0,0.00020465,2]
[319461853,1710791438913,-30.73200147,0.00020465,2]
[319461854,1710791438925,-122.13550367,0.00020465,2]
[319461855,1710791438935,-1000.0,0.00020465,2]
[319461856,1710791438944,-1000.0,0.00020465,2]
[319461857,1710791438954,-1000.0,0.00020465,2]
[319461858,1710791438964,-1000.0,0.00020465,2]
[319461859,1710791438974,-1000.0,0.00020465,2]
[319461860,1710791438984,-1000.0,0.00020465,2]
[319461861,1710791438993,-1000.0,0.00020465,2]
[319461862,1710791439003,-1000.0,0.00020465,2]
[319461863,1710791439013,-1000.0,0.00020465,2]
[319461864,1710791439022,-1000.069491,0.00020465,2]
[319461865,1710791439032,-150.9722901,0.00020536,2]
[319461866,1710791439042,-176.0,0.00020548,2]
[319461867,1710791439051,-155.0,0.00020548,2]
[319461868,1710791439061,-150.0,0.00020548,2]
[319461869,1710791439071,-166.44360795,0.00020568,2]
[319461870,1710791439081,-166.44360795,0.000206,2]
[319461871,1710791439090,-1000.0,0.00020612,2]
[319461872,1710791439099,-150.0,0.00020648,2]
[319461873,1710791439110,-2330.7428,0.00020654,2]
[319461874,1710791439120,-208.4264,0.00020699,2]
[319461875,1710791439129,-431.4417,0.00020699,2]
[319461876,1710791439139,-4500.9937,0.00020699,2]
[319461877,1710791439149,-679.3831,0.000207,2]
[319461878,1710791439161,-370.3076,0.000207,2]
[319461879,1710791439170,-178.29,0.0002074,2]
[319461880,1710791439180,-175.64449742,0.00020741,2]
[319461881,1710791439189,-167.8297961,0.00020768,2]
[319461882,1710791439198,-536.34,0.00020798,2]
[319461883,1710791439207,-1600.30699787,0.00020799,2]
[319461884,1710791439219,-3493.80000006,0.00020799,2]
[319461885,1710791439230,-265.73547415,0.00020799,2]
[319461886,1710791439258,-1413.50983463,0.00020799,2]
[319461887,1710791439268,-673.186,0.000208,2]
[319461888,1710791439278,-324.8482,0.000208,2]
[319461889,1710791439288,-2165.1359,0.000208,2]
[319461890,1710791439297,-2449.1404,0.000208,2]
[319461891,1710791439306,-9101.64303145,0.000208,2]
[319461892,1710791439317,-540.74,0.000208,2]
[319461893,1710791439328,-693.65296,0.000208,2]
[319461894,1710791439356,-578.02656,0.000208,2]
[319461895,1710791439387,-21948.44494855,0.000208,2]
[319461896,1710791439397,-178.2091,0.000208,2]
[319461897,1710791439406,-2500.0,0.000208,2]
[319461898,1710791439685,-1000.0,0.000208,2]
[319461899,1710791439699,-186.42814042,0.00020862,2]
[319461900,1710791439708,-193.86,0.0002089,3]
[319461901,1710791439717,-3968.55965813,0.00020898,2]
[319461902,1710791439726,-345.29368143,0.00020898,2]
[319461903,1710791439735,-214.34659075,0.00020898,2]
[319461904,1710791439744,-155.11116532,0.00020898,2]
[319461905,1710791439754,-1060.19175182,0.00020898,2]
[319461906,1710791439763,-10539.23930663,0.00020898,2]
[319461907,1710791439772,-172.82675035,0.00020898,2]
[319461908,1710791439782,-409.72680051,0.00020898,2]
[319461909,1710791439791,-272.30761929,0.00020898,2]
[319461910,1710791439800,-274.57125575,0.00020898,2]
[319461911,1710791439810,-500.0,0.00020899,2]
[319461912,1710791439820,-1008.3,0.00020899,2]
[319461913,1710791439829,-500.0,0.00020899,2]
[319461914,1710791439838,-458.02380382,0.00020899,2]
[319461915,1710791439848,-500.0,0.00020899,2]
[319461916,1710791439857,-500.0,0.00020899,2]
[319461917,1710791439866,-500.0,0.00020899,2]
[319461918,1710791439876,-500.0,0.00020899,2]
[319461919,1710791439885,-500.0,0.00020899,2]
[319461920,1710791439894,-500.0,0.00020899,2]
[319461921,1710791439903,-298.36321097,0.00020899,2]
[319461922,1710791439912,-500.0,0.00020899,2]
[319461923,1710791439922,-471.61456854,0.00020899,2]
[319461924,1710791439931,-500.0,0.00020899,2]
[319461925,1710791439940,-500.0,0.00020899,2]
[319461926,1710791439949,-500.0,0.00020899,2]
[319461927,1710791439958,-603.17784674,0.00020899,2]
[319461928,1710791439967,-500.0,0.00020899,2]
[319461929,1710791439977,-500.0,0.00020899,2]
[319461930,1710791439986,-500.0,0.00020899,2]
[319461931,1710791439997,-500.0,0.00020899,2]
[319461932,1710791440006,-500.0,0.00020899,2]
[319461933,1710791440016,-500.0,0.00020899,2]
[319461934,1710791440026,-500.0,0.00020899,2]
[319461935,1710791440035,-500.0,0.00020899,2]
[319461936,1710791440045,-500.0,0.00020899,2]
[319461937,1710791440055,-500.0,0.00020899,2]
[319461938,1710791440064,-500.0,0.00020899,2]
[319461939,1710791440074,-570.8757677,0.00020899,2]
[319461940,1710791440083,-500.0,0.00020899,2]
[319461941,1710791440092,-561.85425534,0.00020899,2]
[319461942,1710791440101,-205.2288534,0.00020899,2]
[319461943,1710791440111,-500.0,0.00020899,2]
[319461944,1710791440121,-500.0,0.00020899,2]
[319461945,1710791440130,-500.0,0.00020899,2]
[319461946,1710791440139,-500.0,0.00020899,2]
[319461947,1710791440149,-500.0,0.00020899,2]
[319461948,1710791440158,-500.0,0.00020899,2]
[319461949,1710791440169,-500.0,0.00020899,2]
[319461950,1710791440180,-500.0,0.00020899,2]
[319461951,1710791440189,-500.0,0.00020899,2]
[319461952,1710791440198,-500.0,0.00020899,2]
[319461953,1710791440207,-500.0,0.00020899,2]
[319461954,1710791440217,-206.38788255,0.00020899,2]
[319461955,1710791440226,-500.0,0.00020899,2]
[319461956,1710791440235,-500.0,0.00020899,2]
[319461957,1710791440244,-500.0,0.00020899,2]
[319461958,1710791440254,-500.0,0.00020899,2]
[319461959,1710791440264,-500.0,0.00020899,2]
[319461960,1710791440273,-500.0,0.00020899,2]
[319461961,1710791440283,-500.0,0.00020899,2]
[319461962,1710791440292,-500.0,0.00020899,2]
[319461963,1710791440301,-500.0,0.00020899,2]
[319461964,1710791440311,-500.0,0.00020899,2]
[319461965,1710791440320,-500.0,0.00020899,2]
[319461966,1710791440329,-500.0,0.00020899,2]
[319461967,1710791440339,-500.0,0.00020899,2]
[319461968,1710791440349,-500.0,0.00020899,2]
[319461969,1710791440358,-500.0,0.00020899,2]
[319461970,1710791440367,-500.0,0.00020899,2]
[319461971,1710791440377,-500.0,0.00020899,2]
[319461972,1710791440387,-500.0,0.00020899,2]
[319461973,1710791440397,-500.0,0.00020899,2]
[319461974,1710791440406,-267.6524195,0.00020899,2]
[319461975,1710791440415,-500.0,0.00020899,2]
[319461976,1710791440426,-500.0,0.00020899,2]
[319461977,1710791440435,-500.0,0.00020899,2]
[319461978,1710791440445,-618.54255346,0.00020899,2]
[319461979,1710791440455,-51596.61722457,0.000209,2]
[319461981,1710791440796,-27031.28767543,0.000209,2]
[319461982,1710791440805,-1671.5173,0.000209,2]
[319461983,1710791440815,-36912.09809684,0.000209,2]
[319461984,1710791440864,-15940.28448737,0.000209,2]
[319461985,1710791440889,-400.42299994,0.000209,2]
[319461986,1710791440988,-307.46014093,0.000209,2]
[319461987,1710791441190,-52442.43730441,0.000209,2]
[319461988,1710791441203,-596.12154197,0.000209,2]
[319461995,1710791443365,-1029.25752033,0.00014591,2]
[319461996,1710791443376,-444.523768,0.00020822,2]
[319461997,1710791443385,-5754.52447203,0.000209,2]
[319461998,1710791443504,-1930.12806895,0.000209,2]
[319461999,1710791443515,-537.94473658,0.000209,2]
[319462000,1710791443565,-5009.74606679,0.000209,2]
[319462001,1710791443636,-3183.2,0.000209,2]
[319462015,1710791446468,-230.40093515,0.00020899,2]
[319462016,1710791446477,-642.212026,0.00020899,5]
[319462017,1710791446514,-359.47772051,0.00020899,5]
[319462018,1710791446557,-0.15089866,0.00020899,5]
[319462079,1710792457354,540.05,0.00011432,2]
[319462080,1710792464064,4785.4247166,0.00021,30]
[319462081,1710792464090,6027.06346964,0.00021,30]
[319462082,1710792477134,10812.48818624,0.00021,30]
[319462083,1710792495197,10812.48818624,0.00021,30]
[319462084,1710792513136,10812.48818624,0.00021,30]
[319462085,1710792531143,2283.35614702,0.00021,30]
[319462086,1710792545148,-160.30169063,0.00012273,2]
[319462087,1710792545170,-270.02185267,0.00012274,2]
[319462088,1710792545191,-400.0,0.00012275,2]
[319462089,1710792545212,-277.01513352,0.00012276,2]
[319462090,1710792545234,-3358.69343127,0.00012277,2]
[319462091,1710792545255,-7177.02151288,0.00012279,5]
[319462092,1710792545275,-178.29,0.00012721,2]
[319462093,1710792545296,-276.81262871,0.00013,2]
[319462094,1710792545316,-150.0,0.00013,2]
[319462095,1710792545337,-864.31,0.00013128,2]
[319462096,1710792545358,-250.0,0.00013148,2]
[319462097,1710792545379,-975.23,0.00013203,2]
[319462098,1710792545403,-178.29,0.00013269,2]
[319462099,1710792545423,-499.99,0.00013269,2]
[319462100,1710792545445,-234.08,0.00013269,2]
[319462101,1710792545466,-193.49,0.00013283,2]
[319462102,1710792545488,-10471.86752236,0.00013448,2]
[319462103,1710792546193,-22729.13247764,0.00013448,2]
[319462104,1710792546215,-540.05,0.00013696,2]
[319462105,1710792546236,-250.0,0.00013699,2]
[319462106,1710792546257,-258.09,0.00013699,2]
[319462107,1710792546279,-539.18024572,0.000137,2]
[319462108,1710792546299,-178.29,0.00013817,2]
[319462109,1710792546320,-150.99,0.000139,2]
[319462110,1710792546340,-174.51169889,0.000139,2]
[319462111,1710792546628,-150.36270653,0.000139,2]
[319462112,1710792546663,-6096.01707603,0.000139,2]
[319462113,1710792546684,-19152.28381941,0.000139,2]
[319462114,1710792546704,-2921.48089098,0.000139,2]
[319462115,1710792546725,-189.5820533,0.000139,2]
[319462116,1710792546743,-290.42,0.0001399,3]
[319462117,1710792546763,-871.28,0.0001399,3]
[319462118,1710792546782,-1896.19276275,0.0001399,2]
[319462119,1710792546815,-61947.69868676,0.00014,2]
[319462120,1710792552151,-6998.8619,0.00014,2]
[319462130,1710792571097,-3178.16786163,0.00013998,2]
[319462131,1710792571121,-373.07034803,0.00013999,2]
[319462132,1710792571142,-3810.12632467,0.00013999,5]
[319462133,1710792571162,-159.83732445,0.00013999,2]
[319462134,1710792571181,-368.8221979,0.00013999,2]
[319462135,1710792571201,-400.0,0.00013999,2]
[319462136,1710792571222,-17064.17494332,0.00014,2]
[319462163,1710792631396,-178.29,0.00012448,2]
[319462164,1710792631406,-178.29,0.00012996,2]
[319462165,1710792631415,-178.29,0.00013544,2]
[319462166,1710792631424,-459.99951933,0.000139,2]
[319462168,1710792631437,-245.82165168,0.000139,2]
[319462170,1710792631448,-580.84,0.0001399,3]
[319462172,1710792631457,-320.61911724,0.00014,2]
[319462175,1710792631470,-48847.5,0.00014,2]
[319462179,1710792631504,-4645.40589753,0.00014,2]
[319462181,1710792631518,-300.0,0.00014,2]
[319462184,1710792631530,-11385.22222117,0.00014,2]
[319462186,1710792631541,-557.07764247,0.00014,2]
[319462190,1710792631576,-517.638994,0.00014,2]
[319462193,1710792631587,-5343.05511992,0.00014,2]
[319462199,1710792631640,-1484.3878097,0.00014,2]
[319462201,1710792631652,-631.34928021,0.00014,2]
[319462203,1710792631663,-5897.97876645,0.00014,2]
[319462204,1710792631675,-155390.35581119,0.00014,2]
[319462216,1710792631787,-1679.06194262,0.00014,2]
[319462219,1710792631801,-648.48268222,0.00014,2]
[319462224,1710792631824,-1941.47009482,0.00014,2]
[319462227,1710792631836,-381.83683701,0.00014,2]
[319462231,1710792631849,-461.94374334,0.00014,2]
[319462235,1710792631867,-1401020.9775038,0.00014,2]
[319462238,1710792631880,-648.12882621,0.00014,2]
[319462242,1710792631892,-500.77266238,0.00014,2]
[319462246,1710792631910,-10168.27593882,0.00014,2]
[319462250,1710792631923,-358.16390953,0.00014,2]
[319462254,1710792631935,-1869.77078087,0.00014,2]
[319462407,1710792637386,-15867.32323396,0.000139,2]
[319462408,1710792637395,-5252.43211276,0.00014,2]
[319462419,1710792637494,-6708.33038795,0.00014,2]
[319462421,1710792637506,-707.40577778,0.00014,2]
[319462423,1710792637517,-44672.58167419,0.00014,2]
[319462425,1710792637529,-406.15792888,0.00014,2]
[319462427,1710792637538,-150.0,0.00014,2]
[319462430,1710792637547,-178.29,0.00014092,2]
[319462432,1710792637557,-400.0,0.00014512,2]
[319462434,1710792637566,-150.0,0.00014548,2]
[319462436,1710792637576,-178.29,0.0001464,2]
[319462438,1710792637585,-19152.28381935,0.00014769,2]
[319462439,1710792637594,-6096.01707595,0.00014841,2]
[319462441,1710792637604,-541.99951257,0.000149,2]
[319462443,1710792637615,-2738.02478425,0.000149,2]
[319462446,1710792637624,-189.70905053,0.000149,2]
[319462447,1710792637633,-264.680497,0.000149,2]
[319462449,1710792637642,-7738.29621319,0.000149,2]
[319462452,1710792637654,-1206.40013023,0.000149,2]
[319462454,1710792637666,-7141.94682222,0.000149,2]
[319462456,1710792637675,-491.10391408,0.000149,2]
[319462458,1710792637684,-2940.2675987,0.00015,2]
[319462460,1710792637696,-1540.43822144,0.00015,2]
[319462464,1710792637721,-6515.71923347,0.00015,2]
[319462466,1710792637732,-4536.59487485,0.00015,2]
[319462468,1710792637743,-3520.66396125,0.00015,2]
[319462471,1710792637759,-848.26710872,0.00015,2]
[319462476,1710792637795,-1984.68,0.00015,2]
[319462479,1710792637806,-6239.89428187,0.00015,2]
[319462484,1710792637829,-1097.28209639,0.00015,2]
[319462487,1710792637841,-7981.86710565,0.00015,2]
[319462489,1710792637852,-520.37894399,0.00015,2]
[319462586,1710792639909,-395.8,0.00014871,2]
[319462590,1710792639941,-1811.46470036,0.00014871,2]
[319462592,1710792639965,-1026.26276615,0.00014871,2]
[319462638,1710792642542,-298.68881553,0.00014,2]
[319462640,1710792642552,-155.08448585,0.00014,2]
[319462642,1710792642565,-5576.4602508,0.00014871,2]
[319462646,1710792642597,-7057.33551657,0.00014871,2]
[319462648,1710792642609,-1660436.45957932,0.00015,2]
[319462650,1710792642624,-19371.03892811,0.00015,2]
[319462652,1710792642635,-2921.48089091,0.00015012,2]
[319462654,1710792642645,-178.29,0.00015188,2]
[319462656,1710792642654,-734.0,0.000153,2]
[319462658,1710792642663,-513.66,0.00015632,2]
[319462660,1710792642673,-19152.28381935,0.00015638,2]
[319462662,1710792642682,-513.66,0.0001569,2]
[319462664,1710792642692,-179.40344926,0.00015736,2]
[319462666,1710792642702,-150.0,0.0001574,2]
[319462668,1710792642712,-513.66,0.00015747,2]
[319462670,1710792642722,-2526.1837613,0.0001575,2]
[319462672,1710792642732,-6096.01707595,0.00015781,2]
[319462674,1710792642741,-513.66,0.00015805,2]
[319462676,1710792642751,-513.66,0.00015863,2]
[319462678,1710792642760,-864.31,0.00015868,2]
[319462680,1710792642770,-255.24983436,0.000159,2]
[319462682,1710792642779,-513.66,0.0001592,2]
[319462685,1710792642789,-540.05,0.0001596,2]
[319462687,1710792642798,-513.66,0.00015978,2]
[319462689,1710792642807,-232.19537326,0.00016,2]
[319462691,1710792642816,-513.66,0.00016035,2]
[319462693,1710792642826,-513.66,0.00016093,2]
[319462695,1710792642835,-2921.48089091,0.00016123,2]
[319462697,1710792642845,-513.66,0.00016151,2]
[319462700,1710792642854,-513.66,0.00016208,2]
[319462703,1710792642864,-513.66,0.00016266,2]
[319462706,1710792642873,-513.66,0.00016323,2]
[319462708,1710792642882,-400.0,0.00016326,2]
[319462710,1710792642892,-513.66,0.00016381,2]
[319462712,1710792642903,-513.66,0.00016439,2]
[319462714,1710792642912,-513.66,0.00016496,2]
[319462716,1710792642923,-19152.28381935,0.00016508,2]
[319462718,1710792642933,-513.66,0.00016554,2]
[319462720,1710792642942,-513.66,0.00016611,2]
[319462722,1710792642951,-541.99951253,0.00016629,2]
[319462724,1710792642963,-513.66,0.00016669,2]
[319462726,1710792642972,-6096.01707595,0.00016722,2]
[319462728,1710792642981,-513.66,0.00016726,2]
[319462729,1710792642991,-750.0,0.00017,3]
[319462732,1710792643000,-2921.48089091,0.00017235,2]
[319462734,1710792643010,-19152.28381935,0.00017377,2]
[319462735,1710792643020,-6096.01707595,0.00017662,2]
[319462738,1710792643030,-621.28477509,0.00017763,2]
[319462740,1710792643039,-2500.0,0.000178,2]
[319462741,1710792643048,-391.749689,0.00018082,2]
[319462743,1710792643058,-400.0,0.0001814,2]
[319462745,1710792643068,-600.0,0.00018188,2]
[319462748,1710792643077,-151.9,0.00018188,2]
[319462750,1710792643087,-1465.99980728,0.000182,2]
[319462752,1710792643096,-540.05,0.00018224,2]
[319462754,1710792643106,-19152.28381935,0.00018246,2]
[319462755,1710792643116,-1500.0,0.000183,2]
[319462757,1710792643125,-2921.48089091,0.00018346,2]
[319462760,1710792643135,-541.99951253,0.00018359,2]
[319462761,1710792643144,-2738.02478424,0.00018583,2]
[319462763,1710792643153,-6096.01707595,0.00018603,2]
[319462765,1710792643163,-864.31,0.00018608,2]
[319462766,1710792643172,-264.68049698,0.00018631,2]
[319462767,1710792643181,-16086.64316563,0.00018631,2]
[319462768,1710792643190,-491.10391407,0.00018633,2]
[319462770,1710792643200,-1500.0,0.000188,2]
[319462772,1710792643211,-391.749689,0.00018904,2]
[319462774,1710792643221,-800.0,0.00019,3]
[319462776,1710792643231,-1103.0,0.00019096,2]
[319462778,1710792643241,-19152.28381935,0.00019115,2]
[319462780,1710792643251,-284.65047282,0.00019178,2]
[319462782,1710792643260,-174.54175197,0.00019178,2]
[319462784,1710792643269,-411.69209482,0.00019178,2]
[319462786,1710792643279,-500.0,0.00019178,2]
[319462788,1710792643288,-640.85026883,0.00019178,2]
[319462790,1710792643298,-330.1793965,0.00019178,2]
[319462792,1710792643307,-411.82087584,0.00019178,2]
[319462793,1710792643317,-500.0,0.00019178,2]
[319462794,1710792643326,-500.0,0.00019178,2]
[319462795,1710792643335,-500.0,0.00019178,2]
[319462796,1710792643344,-207.4718656,0.00019178,2]
[319462797,1710792643353,-471.11313538,0.00019178,2]
[319462798,1710792643362,-500.0,0.00019178,2]
[319462799,1710792643371,-732.14,0.0001918,2]
[319462800,1710792643381,-732.14,0.0001918,2]
[319462801,1710792643390,-732.14,0.0001918,2]
[319462802,1710792643399,-732.14,0.0001918,2]
[319462803,1710792643408,-732.14,0.0001918,2]
[319462804,1710792643417,-732.14,0.0001918,2]
[319462805,1710792643426,-732.14,0.0001918,2]
[319462806,1710792643435,-732.14,0.0001918,2]
[319462807,1710792643445,-732.14,0.0001918,2]
[319462808,1710792643454,-732.14,0.0001918,2]
[319462809,1710792643468,-180.0,0.00019288,2]
[319462810,1710792643478,-1500.0,0.000193,2]
[319462811,1710792643487,-5335.84,0.00019339,2]
[319462812,1710792643497,-10281.76,0.00019339,2]
[319462813,1710792643506,-3266.96,0.00019339,2]
[319462814,1710792643515,-154.56303768,0.00019417,2]
[319462815,1710792643525,-2921.48089091,0.00019458,2]
[319462816,1710792643536,-235.47,0.00019465,2]
[319462817,1710792643545,-153.05383811,0.00019472,2]
[319462818,1710792643554,-156.7824589,0.00019473,2]
[319462819,1710792643563,-12475.13117813,0.000195,2]
[319462820,1710792643571,-6096.01707595,0.00019543,2]
[319462821,1710792643581,-152.38,0.0001956,15]
[319462822,1710792643591,-234.0,0.0001956,15]
[319462823,1710792643601,-157.89,0.0001956,15]
[319462824,1710792643610,-150.5,0.0001957,15]
[319462825,1710792643619,-234.0,0.0001957,15]
[319462826,1710792643628,-150.5,0.0001957,15]
[319462827,1710792643637,-156.29,0.0001958,15]
[319462828,1710792643657,-150.5,0.0001958,15]
[319462829,1710792643666,-234.0,0.0001958,15]
[319462830,1710792643676,-150.5,0.0001958,15]
[319462831,1710792643685,-152.38,0.0001958,15]
[319462832,1710792643695,-152.71,0.0001958,15]
[319462833,1710792643704,-151.35,0.0001958,15]
[319462834,1710792643717,-150.82,0.0001958,15]
[319462835,1710792643726,-153.83,0.0001958,15]
[319462836,1710792643734,-154.56106171,0.00019642,2]
[319462837,1710792643743,-1531.47,0.00019707,2]
[319462838,1710792643751,-477.91,0.00019707,2]
[319462839,1710792643760,-408.47,0.00019707,2]
[319462840,1710792643768,-408.47,0.00019707,2]
[319462841,1710792643777,-408.47,0.00019707,2]
[319462842,1710792643787,-153.6268143,0.00019713,2]
[319462843,1710792643797,-391.749689,0.00019726,2]
[319462844,1710792643806,-2958.28,0.00019726,2]
[319462845,1710792643816,-150.80292757,0.000198,2]
[319462846,1710792643828,-1500.0,0.000198,2]
[319462847,1710792643837,-150.36270647,0.000199,2]
[319462848,1710792643847,-400.0,0.00019954,2]
[319462849,1710792643858,-2958.28,0.00019974,2]
[319462850,1710792643870,-19152.28381935,0.00019984,2]
[319462851,1710792643883,-183.18210688,0.0002,2]
[319462852,1710792643892,-1361.44941736,0.0002,2]
[319462853,1710792643901,-2203.83343697,0.0002,2]
[319462854,1710792643911,-150.80292757,0.00020069,2]
[319462855,1710792643920,-541.99951253,0.00020088,2]
[319462856,1710792643930,-154.56106171,0.00020128,2]
[319462857,1710792643938,-156.51853804,0.00020175,2]
[319462858,1710792643947,-2958.28,0.00020222,2]
[319462859,1710792643959,-166.44360795,0.00020222,2]
[319462860,1710792643969,-1500.0,0.000203,2]
[319462861,1710792643978,-395.310628,0.000203,2]
[319462862,1710792643987,-5669.0,0.00020361,2]
[319462863,1710792643996,-4762.0,0.00020361,2]
[319462864,1710792644006,-42884.0,0.00020361,2]
[319462865,1710792644015,-2445.0,0.00020361,2]
[319462866,1710792644024,-1044.0,0.00020361,2]
[319462867,1710792644033,-302.44,0.00020391,2]
[319462868,1710792644043,-306.35,0.00020391,2]
[319462869,1710792644052,-225.31,0.00020391,2]
[319462870,1710792644061,-516.76,0.00020391,2]
[319462871,1710792644070,-150.0,0.00020391,2]
[319462872,1710792644079,-150.0,0.00020391,2]
[319462873,1710792644088,-152.5,0.00020391,2]
[319462874,1710792644097,-150.0,0.00020391,2]
[319462875,1710792644106,-150.0,0.00020391,2]
[319462876,1710792644115,-516.76,0.00020391,2]
[319462877,1710792644124,-150.0,0.00020391,2]
[319462878,1710792644133,-150.0,0.00020391,2]
[319462879,1710792644142,-516.76,0.00020391,2]
[319462880,1710792644152,-150.0,0.00020391,2]
[319462881,1710792644161,-150.0,0.00020391,2]
[319462882,1710792644171,-150.0,0.00020391,2]
[319462883,1710792644180,-150.0,0.00020391,2]
[319462884,1710792644189,-150.0,0.00020391,2]
[319462885,1710792644198,-300.0,0.00020391,2]
[319462886,1710792644209,-205.84,0.00020391,2]
[319462887,1710792644217,-150.0,0.00020391,2]
[319462888,1710792644227,-346.82,0.00020391,2]
[319462889,1710792644235,-150.0,0.00020391,2]
[319462890,1710792644245,-1033.28,0.00020391,2]
[319462891,1710792644254,-150.0,0.00020391,2]
[319462892,1710792644263,-150.0,0.00020391,2]
[319462893,1710792644479,-150.0,0.00020391,2]
[319462894,1710792644492,-346.82,0.00020391,2]
[319462895,1710792644502,-150.0,0.00020391,2]
[319462896,1710792644512,-418.0,0.00020411,2]
[319462897,1710792644526,-176.0,0.00020411,2]
[319462898,1710792644535,-600.0,0.00020461,2]
[319462899,1710792644546,-2958.28,0.0002047,2]
[319462900,1710792644558,-153.05383811,0.00020478,2]
[319462901,1710792644571,-6096.01707595,0.00020484,2]
[319462902,1710792644582,-540.05,0.00020488,2]
[319462903,1710792644592,-336.79025706,0.00020492,2]
[319462904,1710792644603,-344.9114972,0.00020492,10]
[319462905,1710792644613,-10000.0,0.00020492,2]
[319462906,1710792644623,-1396.12591537,0.00020492,2]
[319462907,1710792644633,-500.0,0.00020492,10]
[319462908,1710792644642,-299.999999,0.00020492,2]
[319462909,1710792644652,-941.57395638,0.00020492,4]
[319462910,1710792644661,-1112.32919457,0.00020492,10]
[319462911,1710792644671,-736.43400744,0.00020492,10]
[319462912,1710792644680,-3123.46662716,0.00020492,2]
[319462913,1710792644689,-35810.38914772,0.00020492,2]
[319462914,1710792644748,-33532.97042848,0.00020492,2]
[319462915,1710792644760,-692.77024555,0.00020492,2]
[319462916,1710792644840,-368.6978295,0.00020492,2]
[319462917,1710792644871,-516.76,0.00020391,2]
[319462918,1710792644880,-8434.98484371,0.00020492,2]
[319462928,1710792646570,-595.26942621,0.0001487,2]
[319462929,1710792646604,-187.63071479,0.0001487,2]
[319462930,1710792646620,-229.9337177,0.00014999,2]
[319462931,1710792646639,-290.72253822,0.00014999,2]
[319462932,1710792646672,-255.0927525,0.00014999,2]
[319462933,1710792646687,-82.3681575,0.00015842,2]
[319462936,1710792753155,10812.48818624,0.00021,30]
[319462937,1710792773170,520.78118,0.00021,30]
[319462944,1710793635322,-174.73663007,0.00011897,2]
[319462945,1710793748137,-484.92463191,0.00011887,2]
[319462946,1710793748157,-2044.25746809,0.00011888,5]
[319462947,1710793749131,-5132.76404479,0.00011888,5]
[319462948,1710793749153,-972.45452497,0.00011888,2]